fUSD/lending_fUSD_20250420
["ID","MTS","AMOUNT","RATE_DAILY","PERIOD"]
[358447013,1745159438728,-353.951273,0.00026128,7]
[358447014,1745159438738,-151.0,0.00026128,7]
[358447015,1745159438748,-151.0,0.00026128,7]
[358447016,1745159438758,-151.0,0.00026128,7]
[358447017,1745159438767,-281.09826,0.00026128,7]
[358447018,1745159438776,-151.0,0.00026128,7]
[358447019,1745159438786,-317.939843,0.00026128,7]
[358447020,1745159438796,-317.939843,0.00026128,7]
[358447021,1745159438806,-151.0,0.00026128,7]
[358447022,1745159438815,-151.0,0.00026128,7]
[358447023,1745159438824,-165.853595,0.00026128,7]
[358447024,1745159438834,-151.0,0.00026128,7]
[358447025,1745159438843,-362.511007,0.00026128,7]
[358447026,1745159438853,-362.511007,0.00026128,7]
[358447027,1745159438863,-21064.61,0.00026129,2]
[358447028,1745159438872,-150.0,0.00026149,7]
[358447029,1745159438881,-575.05,0.00026149,2]
[358447030,1745159438891,-1189.44,0.0002617,2]
[358447031,1745159438900,-300.0,0.00026213,2]
[358447032,1745159438910,-229.28,0.00026221,2]
[358447033,1745159438919,-1811.35997587,0.000264,2]
[358447034,1745159438929,-403.4,0.00026412,2]
[358447035,1745159438938,-1000.0,0.00026422,2]
[358447036,1745159438948,-151.0,0.00026465,7]
[358447037,1745159438958,-500.0,0.0002665,2]
[358447038,1745159438967,-166.67,0.0002682,2]
[358447039,1745159438976,-250.0,0.00027,2]
[358447040,1745159438985,-997.33785736,0.00027,2]
[358447041,1745159438994,-155.3761868,0.00027,2]
[358447042,1745159439004,-151.0,0.00027367,7]
[358447043,1745159439013,-152.62,0.0002738,2]
[358447044,1745159439023,-20354.9313735,0.0002739,2]
[358447045,1745159439032,-154.63,0.00027397,2]
[358447046,1745159439041,-608.93,0.00027397,2]
[358447047,1745159439054,-498.71,0.00027397,2]
[358447048,1745159439064,-500.0,0.00027397,5]
[358447049,1745159439073,-492.45986394,0.000274,2]
[358447050,1745159439083,-600.0,0.000274,2]
[358447051,1745159439092,-337.0,0.000274,2]
[358447052,1745159439102,-193.72534286,0.000275,2]
[358447053,1745159439111,-229.28,0.00027532,2]
[358447054,1745159439121,-900.45430553,0.0002799,2]
[358447055,1745159439131,-994.31604752,0.00028,2]
[358447056,1745159439140,-151.0,0.00028027,7]
[358447057,1745159439150,-166.67,0.00028149,2]
[358447058,1745159439159,-151.0,0.00028253,7]
[358447059,1745159439168,-151.0,0.00028253,7]
[358447060,1745159439177,-154.63,0.00028253,2]
[358447061,1745159439186,-1306.30702728,0.00028362,2]
[358447062,1745159439195,-507.12836797,0.00028363,2]
[358447063,1745159439204,-1189.44,0.00028433,2]
[358447064,1745159439215,-608.93,0.00028767,2]
[358447065,1745159439225,-229.28,0.00028843,2]
[358447066,1745159439235,-166.66,0.00028932,2]
[358447067,1745159439245,-2071.93321212,0.00028942,2]
[358447068,1745159439255,-202.01,0.00028966,2]
[358447070,1745159439265,-259.85501416,0.00029,2]
[358447071,1745159439275,-154.63,0.0002911,2]
[358447072,1745159439409,-154.660878,0.00029164,7]
[358447073,1745159439419,-155.689614,0.00029164,7]
[358447074,1745159439429,-151.0,0.00029164,7]
[358447076,1745159439438,-151.0,0.00029173,7]
[358447078,1745159439448,-1000.0,0.00029358,2]
[358447079,1745159439457,-154.63,0.00029966,2]
[358447080,1745159439466,-164.81703696,0.0002999,2]
[358447093,1745159439707,-64.00939478,0.0002999,2]
[358447095,1745159439717,-190.46677314,0.0003,5]
[358447096,1745159439726,-254.0588415,0.0003,2]
[358447097,1745159439739,-588.66538676,0.0003,2]
[358447098,1745159439748,-1518.99290204,0.0003,2]
[358447099,1745159440129,-230.93038959,0.0003,2]
[358447100,1745159440138,-191.84848041,0.0003,2]
[358447106,1745159442469,-564.65391728,0.0003,2]
[358447112,1745159442606,-450.44397363,0.0003,2]
[358447113,1745159442616,-194.2,0.0003,2]
[358447114,1745159442625,-160.60567306,0.0003,2]
[358447115,1745159442635,-343.78456939,0.0003,5]
[358447117,1745159445622,-657.11493051,0.0003,5]
[358447118,1745159445632,-153.35,0.0003,2]
[358447119,1745159445642,-384.10829551,0.0003,2]
[358447120,1745159445651,-200.0,0.0003,2]
[358447121,1745159445787,-608.93,0.00030137,2]
[358447122,1745159445798,-610.0,0.00030137,2]
[358447123,1745159445808,-229.28,0.00030154,2]
[358447124,1745159445817,-151.0,0.000302,7]
[358447125,1745159445827,-151.0,0.000302,7]
[358447126,1745159445836,-184.126413,0.000302,7]
[358447127,1745159445845,-151.0,0.000302,7]
[358447128,1745159445856,-276.318474,0.000302,2]
[358447129,1745159445868,-276.318474,0.000302,2]
[358447130,1745159445877,-151.0,0.000302,7]
[358447131,1745159445887,-353.951273,0.000302,7]
[358447132,1745159445898,-353.951273,0.000302,7]
[358447133,1745159445909,-151.0,0.000302,7]
[358447134,1745159445919,-206.996829,0.000302,7]
[358447135,1745159445929,-151.0,0.000302,7]
[358447136,1745159445941,-362.511007,0.000302,7]
[358447137,1745159445951,-362.511007,0.000302,7]
[358447138,1745159445960,-200.0,0.000303,2]
[358447139,1745159445970,-200.0,0.000305,2]
[358447140,1745159445979,-1189.44,0.00030697,2]
[358447141,1745159445989,-154.63,0.00030822,2]
[358447142,1745159445998,-1094.0,0.000312,2]
[358447143,1745159446007,-401.0,0.000314,5]
[358447144,1745159446017,-163.29217,0.000314,7]
[358447145,1745159446026,-2071.93321212,0.0003141,2]
[358447146,1745159446036,-20354.9313735,0.0003142,2]
[358447147,1745159446046,-2071.93321212,0.0003142,2]
[358447148,1745159446058,-18889.11805265,0.0003143,4]
[358447149,1745159446068,-157.398784,0.0003143,7]
[358447150,1745159446077,-156.669112,0.0003143,7]
[358447151,1745159446086,-158.89055,0.0003143,7]
[358447152,1745159446095,-151.0,0.0003143,7]
[358447153,1745159446105,-317.939843,0.0003143,7]
[358447154,1745159446115,-317.939843,0.0003143,7]
[358447155,1745159446126,-151.0,0.0003143,7]
[358447156,1745159446135,-151.0,0.0003143,7]
[358447157,1745159446145,-229.28,0.00031466,2]
[358447158,1745159446156,-608.93,0.00031507,2]
[358447159,1745159446165,-154.63,0.00031678,2]
[358447160,1745159446175,-1506.25175843,0.00032,2]
[358447161,1745159446183,-235.0,0.00032,2]
[358447162,1745159446193,-200.0,0.00032,2]
[358447163,1745159446201,-202.01,0.00032097,2]
[358447164,1745159446211,-501.4122184,0.00032129,5]
[358447165,1745159446224,-1000.0,0.00032294,2]
[358447166,1745159446234,-362.511007,0.00032294,7]
[358447167,1745159446244,-362.511007,0.00032294,7]
[358447168,1745159446253,-200.0,0.0003232,2]
[358447169,1745159446262,-154.63,0.00032534,2]
[358447170,1745159446271,-1306.30702728,0.00032594,2]
[358447171,1745159446280,-507.12836797,0.00032594,2]
[358447172,1745159446289,-200.0,0.00032643,2]
[358447173,1745159446299,-229.28,0.00032777,2]
[358447174,1745159446309,-608.93,0.00032877,2]
[358447175,1745159446318,-619.304321,0.00032877,7]
[358447176,1745159446327,-619.304321,0.00032877,7]
[358447177,1745159446336,-619.304321,0.00032877,7]
[358447178,1745159446345,-619.304321,0.00032877,7]
[358447179,1745159446354,-619.304321,0.00032877,7]
[358447180,1745159446363,-619.304321,0.00032877,7]
[358447181,1745159446372,-177.05,0.00032877,30]
[358447182,1745159446381,-331.25,0.00032877,2]
[358447183,1745159446391,-600.0,0.000329,2]
[358447184,1745159446400,-337.81645263,0.000329,2]
[358447185,1745159446409,-1189.44,0.00032961,2]
[358447186,1745159446418,-200.0,0.0003297,2]
[358447187,1745159446427,-151.0,0.00033099,7]
[358447188,1745159446436,-276.318474,0.00033099,2]
[358447189,1745159446445,-276.318474,0.00033099,2]
[358447190,1745159446454,-151.0,0.00033099,7]
[358447191,1745159446463,-353.951273,0.00033099,7]
[358447192,1745159446473,-353.951273,0.00033099,7]
[358447193,1745159446482,-151.0,0.00033099,7]
[358447194,1745159446491,-2071.93321212,0.00033099,2]
[358447195,1745159446501,-216.42739726,0.000331,2]
[358447196,1745159446510,-2005.97527949,0.00033109,2]
[358447197,1745159446520,-200.0,0.00033299,2]
[358447198,1745159446529,-154.63,0.0003339,2]
[358447199,1745159446539,-1168.17655707,0.000335,2]
[358447200,1745159446548,-152.0,0.0003352,2]
[358447201,1745159446558,-795.0,0.0003352,2]
[358447202,1745159446567,-2000.0,0.0003392,4]
[358447203,1745159446577,-229.28,0.00034088,2]
[358447204,1745159446586,-154.63,0.00034247,2]
[358447205,1745159446595,-505.86129986,0.00034247,5]
[358447206,1745159446604,-619.304321,0.00034387,7]
[358447207,1745159446614,-619.304321,0.00034387,7]
[358447208,1745159446623,-150.0,0.00034548,10]
[358447209,1745159446632,-151.82967497,0.0003477,2]
[358447210,1745159446641,-20354.9313735,0.0003496,2]
[358447211,1745159446650,-2071.93321212,0.0003496,2]
[358447212,1745159446659,-151.0,0.0003497,7]
[358447213,1745159446669,-276.318474,0.0003497,2]
[358447214,1745159446678,-276.318474,0.0003497,2]
[358447215,1745159446687,-151.0,0.0003497,7]
[358447216,1745159446697,-353.951273,0.0003497,7]
[358447217,1745159446707,-353.951273,0.0003497,7]
[358447218,1745159446716,-151.0,0.0003497,7]
[358447219,1745159446725,-157.034034,0.0003497,7]
[358447220,1745159446734,-362.511007,0.0003497,7]
[358447221,1745159446743,-362.511007,0.0003497,7]
[358447222,1745159446753,-61064.7941205,0.0003497,2]
[358447223,1745159446762,-14503.5324848,0.0003497,2]
[358447224,1745159446771,-152.62,0.0003497,2]
[358447225,1745159446780,-185.338026,0.0003498,7]
[358447226,1745159446790,-276.318474,0.0003498,2]
[358447227,1745159446799,-276.318474,0.0003498,2]
[358447228,1745159446809,-151.0,0.0003498,7]
[358447229,1745159446817,-353.951273,0.0003498,7]
[358447230,1745159446826,-353.951273,0.0003498,7]
[358447231,1745159446835,-237.653654,0.0003498,7]
[358447232,1745159446844,-619.304321,0.0003498,7]
[358447233,1745159446853,-619.304321,0.0003498,7]
[358447234,1745159446862,-151.0,0.0003498,7]
[358447235,1745159446871,-317.939843,0.0003498,7]
[358447236,1745159446880,-317.939843,0.0003498,7]
[358447237,1745159446889,-151.0,0.0003498,7]
[358447238,1745159446898,-151.0,0.0003498,7]
[358447239,1745159446907,-362.511007,0.0003498,7]
[358447240,1745159446916,-362.511007,0.0003498,7]
[358447241,1745159446925,-213.0,0.0003498,2]
[358447242,1745159446935,-101774.656868,0.0003498,2]
[358447243,1745159446944,-22791.2653333,0.0003498,2]
[358447244,1745159446953,-297.6425062,0.0003498,2]
[358447245,1745159446962,-276.318474,0.0003499,2]
[358447246,1745159446971,-276.318474,0.0003499,2]
[358447247,1745159446980,-214.264917,0.0003499,7]
[358447248,1745159446989,-353.951273,0.0003499,7]
[358447249,1745159446999,-353.951273,0.0003499,7]
[358447250,1745159447007,-353.951273,0.0003499,7]
[358447251,1745159447016,-353.951273,0.0003499,7]
[358447252,1745159447025,-619.304321,0.0003499,7]
[358447253,1745159447034,-619.304321,0.0003499,7]
[358447254,1745159447043,-81419.725494,0.0003499,2]
[358447255,1745159447052,-16575.465697,0.0003499,2]
[358447256,1745159447061,-156.380544,0.0003499,7]
[358447257,1745159447071,-317.939843,0.0003499,7]
[358447258,1745159447080,-317.939843,0.0003499,7]
[358447259,1745159447089,-151.0,0.0003499,7]
[358447260,1745159447098,-362.511007,0.0003499,7]
[358447261,1745159447107,-362.511007,0.0003499,7]
[358447262,1745159447116,-152.62,0.0003499,2]
[358447263,1745159447125,-152.62,0.0003499,2]
[358447264,1745159447134,-462.37087633,0.00035,120]
[358447265,1745159447143,-400000.0,0.00035,4]
[358447266,1745159447152,-227.51494367,0.00035,2]
[358447267,1745159447161,-659.23,0.00035,14]
[358447268,1745159447170,-276.318474,0.00035,2]
[358447269,1745159447179,-276.318474,0.00035,2]
[358447270,1745159447188,-353.951273,0.00035,7]
[358447271,1745159447198,-353.951273,0.00035,7]
[358447272,1745159447207,-619.304321,0.00035,7]
[358447273,1745159447219,-619.304321,0.00035,7]
[358447274,1745159447228,-317.939843,0.00035,7]
[358447275,1745159447237,-317.939843,0.00035,7]
[358447276,1745159447247,-151.0,0.00035,7]
[358447277,1745159447256,-362.511007,0.00035,7]
[358447278,1745159447266,-362.511006,0.00035,7]
[358447279,1745159447275,-154.63,0.00035103,2]
[358447280,1745159447284,-1189.44,0.00035225,2]
[358447281,1745159447294,-202.01,0.00035228,2]
[358447282,1745159447303,-1000.0,0.00035229,2]
[358447283,1745159447312,-229.28,0.00035399,2]
[358447284,1745159447321,-1008.72236655,0.00035471,5]
[358447285,1745159447330,-1500.0,0.00035471,5]
[358447286,1745159447339,-153.40215114,0.00035616,5]
[358447287,1745159447348,-154.63,0.00035959,2]
[358447288,1745159447357,-368.179,0.0003652,2]
[358447289,1745159447365,-154.63,0.00036815,2]
[358447290,1745159447375,-1306.30702728,0.00036825,2]
[358447291,1745159447384,-507.12836797,0.00036825,2]
[358447292,1745159447393,-1111.05,0.00037091,2]
[358447293,1745159447403,-1189.44,0.00037489,2]
[358447294,1745159447411,-154.63,0.00037671,2]
[358447295,1745159447421,-659.23,0.000377,14]
[358447296,1745159447431,-213.0,0.0003798,2]
[358447297,1745159447539,-215.89,0.00038337,2]
[358447298,1745159447549,-259.45899864,0.00038356,2]
[358447299,1745159447559,-202.01,0.00038359,2]
[358447300,1745159447568,-154.63,0.00038527,2]
[358447301,1745159447578,-155.81453493,0.00039135,53]
[358447302,1745159447587,-356.759,0.00039135,53]
[358447303,1745159447596,-154.63,0.00039384,2]
[358447304,1745159447606,-619.304321,0.00039726,14]
[358447305,1745159447615,-619.304321,0.00039726,14]
[358447306,1745159447624,-500.0,0.00039726,15]
[358447307,1745159447633,-500.0,0.00039726,15]
[358447308,1745159447643,-500.0,0.00039726,15]
[358447309,1745159447652,-500.0,0.00039726,15]
[358447310,1745159447662,-500.0,0.00039726,15]
[358447311,1745159447671,-500.0,0.00039726,15]
[358447312,1745159447680,-500.0,0.00039726,15]
[358447313,1745159447689,-500.0,0.00039726,15]
[358447314,1745159447698,-500.0,0.00039726,15]
[358447315,1745159447707,-500.0,0.00039726,15]
[358447316,1745159447716,-500.0,0.00039726,15]
[358447317,1745159447726,-500.0,0.00039726,15]
[358447318,1745159447735,-500.0,0.00039726,15]
[358447319,1745159447744,-500.0,0.00039726,15]
[358447320,1745159447754,-500.0,0.00039726,15]
[358447321,1745159447763,-500.0,0.00039726,15]
[358447322,1745159447772,-500.0,0.00039726,15]
[358447323,1745159447781,-500.0,0.00039726,15]
[358447324,1745159447790,-500.0,0.00039726,15]
[358447325,1745159447799,-500.0,0.00039726,15]
[358447326,1745159447809,-500.0,0.00039726,15]
[358447327,1745159447818,-500.0,0.00039726,15]
[358447328,1745159447827,-356.05685578,0.00039726,15]
[358447329,1745159447836,-500.0,0.00039726,15]
[358447330,1745159447845,-500.0,0.00039726,15]
[358447331,1745159447854,-500.0,0.00039726,15]
[358447332,1745159447863,-600.0,0.00039726,15]
[358447333,1745159447872,-500.0,0.00039726,15]
[358447334,1745159447881,-458.33222843,0.00039726,15]
[358447335,1745159447890,-1050.0,0.00039726,15]
[358447336,1745159447899,-1189.44,0.00039753,2]
[358447337,1745159447908,-317.939843,0.00039753,14]
[358447338,1745159447916,-317.939843,0.00039753,14]
[358447339,1745159447926,-151.0,0.00039753,14]
[358447340,1745159447935,-185.56773527,0.0004,2]
[358447341,1745159447944,-463.79424753,0.0004,2]
[358447342,1745159447953,-353.951273,0.0004,14]
[358447343,1745159447962,-353.951265,0.0004,14]
[358447344,1745159447971,-6500.62260392,0.0004,30]
[358447345,1745159447979,-659.23,0.000401,14]
[358447346,1745159447988,-276.318474,0.00040171,2]
[358447347,1745159447997,-276.318474,0.00040171,2]
[358447348,1745159448006,-154.63,0.0004024,2]
[358447349,1745159448015,-213.0,0.0004098,2]
[358447350,1745159448024,-170.0,0.00041,14]
[358447351,1745159448034,-1306.30702728,0.00041056,15]
[358447352,1745159448043,-507.12836797,0.00041057,15]
[358447353,1745159448052,-150.0,0.00041095,120]
[358447354,1745159448061,-154.63,0.00041096,2]
[358447355,1745159448070,-202.01,0.0004149,2]
[358447356,1745159448079,-46829.84250442,0.000419,30]
[358447357,1745159448088,-1189.44,0.00042017,2]
[358447358,1745159448097,-582.0,0.000421,3]
[358447359,1745159448106,-151.0,0.00042253,2]
[358447360,1745159448116,-150.0,0.00042465,120]
[358447361,1745159448125,-151.0,0.00042527,2]
[358447362,1745159448134,-151.0,0.00042801,2]
[358447363,1745159448143,-151.0,0.00043075,2]
[358447364,1745159448153,-151.0,0.00043349,2]
[358447365,1745159448162,-299.45,0.00043362,2]
[358447366,1745159448171,-659.23,0.000434,14]
[358447367,1745159448181,-151.0,0.00043623,2]
[358447368,1745159448190,-659.23,0.000438,14]
[358447369,1745159448199,-150.0,0.00043835,120]
[358447370,1745159448208,-500.0,0.00043836,120]
[358447371,1745159448223,-151.0,0.00043897,2]
[358447372,1745159448232,-213.0,0.0004398,2]
[358447373,1745159448241,-172.31436303,0.00044,30]
[358447374,1745159448250,-151.0,0.00044171,2]
[358447375,1745159448260,-1189.44,0.00044281,2]
[358447376,1745159448270,-288.65714564,0.00044445,2]
[358447377,1745159448279,-500.0,0.00044488,120]
[358447378,1745159448290,-202.01,0.00044621,2]
[358447379,1745159448299,-299.45,0.00044968,2]
[358447380,1745159448309,-276.318474,0.0004498,2]
[358447381,1745159448319,-276.318474,0.0004498,2]
[358447382,1745159448328,-619.304321,0.0004498,14]
[358447383,1745159448337,-619.304321,0.0004498,14]
[358447384,1745159448347,-317.939843,0.0004498,14]
[358447385,1745159448356,-317.939843,0.0004498,14]
[358447386,1745159448366,-174.357056,0.0004498,14]
[358447387,1745159448375,-152.62,0.0004499,2]
[358447388,1745159448386,-207186.26611686,0.00045,5]
[358447389,1745159448395,-276.318474,0.00045,2]
[358447390,1745159448404,-276.318471,0.00045,2]
[358447391,1745159448414,-633.0,0.00045,120]
[358447392,1745159448423,-619.304321,0.00045,14]
[358447393,1745159448433,-619.304319,0.00045,14]
[358447394,1745159448442,-2489.87,0.00045,5]
[358447395,1745159448452,-736.24955697,0.00045,120]
[358447396,1745159448462,-317.939843,0.00045,14]
[358447397,1745159448471,-1068.74869774,0.00045,30]
[358447398,1745159448480,-317.939843,0.00045,14]
[358447399,1745159448490,-151.0,0.00045,120]
[358447400,1745159448500,-500.0,0.0004514,120]
[358447401,1745159448510,-150.0,0.00045205,120]
[358447402,1745159448520,-1306.30702728,0.00045287,15]
[358447403,1745159448530,-507.12836797,0.00045288,15]
[358447404,1745159448539,-500.0,0.00045793,120]
[358447405,1745159448549,-312.0,0.00045879,10]
[358447406,1745159448559,-150.5,0.0004599,120]
[358447407,1745159448569,-200.0,0.00046,10]
[358447408,1745159448579,-688.73601213,0.0004622,20]
[358447409,1745159448588,-659.24,0.000463,14]
[358447410,1745159448598,-500.0,0.00046445,120]
[358447411,1745159448608,-200.0,0.000465,30]
[358447412,1745159448618,-200.0,0.000465,30]
[358447413,1745159448628,-151.0,0.000465,30]
[358447414,1745159448638,-151.0,0.000465,30]
[358447415,1745159448647,-207.4,0.000465,30]
[358447416,1745159448657,-151.0,0.000465,30]
[358447417,1745159448666,-151.0,0.000465,30]
[358447418,1745159448676,-215.0738,0.000465,30]
[358447419,1745159448685,-151.0,0.000465,30]
[358447420,1745159448694,-151.0,0.000465,30]
[358447421,1745159448703,-151.0,0.000465,30]
[358447422,1745159448713,-223.0315306,0.000465,30]
[358447423,1745159448723,-151.0,0.000465,30]
[358447424,1745159448732,-231.28369723,0.000465,30]
[358447425,1745159448741,-151.0,0.000465,30]
[358447426,1745159448751,-151.0,0.000465,30]
[358447427,1745159448760,-151.0,0.000465,30]
[358447428,1745159448769,-239.84119403,0.000465,30]
[358447429,1745159448780,-151.0,0.000465,30]
[358447430,1745159448790,-248.71531821,0.000465,30]
[358447431,1745159448800,-196.556628,0.000465,30]
[358447432,1745159448809,-151.0,0.000465,30]
[358447433,1745159448819,-257.91778498,0.000465,30]
[358447434,1745159448829,-500.0,0.000465,30]
[358447435,1745159448839,-151.0,0.000465,30]
[358447436,1745159448848,-518.5,0.000465,30]
[358447437,1745159448858,-267.46074303,0.000465,30]
[358447438,1745159448867,-151.0,0.000465,30]
[358447439,1745159448877,-537.6845,0.000465,30]
[358447440,1745159448887,-151.0,0.000465,30]
[358447441,1745159448897,-277.35679052,0.000465,30]
[358447442,1745159448906,-557.5788265,0.000465,30]
[358447443,1745159448915,-578.20924308,0.000465,30]
[358447444,1745159448924,-151.0,0.000465,30]
[358447445,1745159448932,-287.61899177,0.000465,30]
[358447446,1745159448942,-599.60298507,0.000465,30]
[358447447,1745159448952,-188.53843573,0.000465,30]
[358447448,1745159448961,-298.26089446,0.000465,30]
[358447449,1745159448972,-621.78829552,0.000465,30]
[358447450,1745159448981,-309.29654756,0.000465,30]
[358447451,1745159448991,-644.79446246,0.000465,30]
[358447452,1745159449000,-320.74051982,0.000465,30]
[358447453,1745159449011,-1203.79803728,0.000465,30]
[358447454,1745159449021,-332.60791905,0.000465,30]
[358447455,1745159449030,-344.91441206,0.000465,30]
[358447456,1745159449039,-357.6762453,0.000465,30]
[358447457,1745159449049,-370.91026638,0.000465,30]
[358447458,1745159449059,-384.63394623,0.000465,30]
[358447459,1745159449166,-600.0,0.000465,30]
[358447460,1745159449187,-1189.44,0.00046545,2]
[358447461,1745159449197,-299.45,0.00046574,2]
[358447462,1745159449207,-150.0,0.00046575,120]
[358447463,1745159449222,-999.0,0.00046575,120]
[358447464,1745159449233,-152.185776,0.00046575,14]
[358447465,1745159449242,-152.185776,0.00046575,14]
[358447466,1745159449251,-152.185776,0.00046575,14]
[358447467,1745159449261,-152.185776,0.00046575,14]
[358447468,1745159449271,-152.185776,0.00046575,14]
[358447469,1745159449281,-152.185776,0.00046575,14]
[358447470,1745159449292,-152.185776,0.00046575,14]
[358447471,1745159449302,-152.185776,0.00046575,14]
[358447472,1745159449311,-152.185776,0.00046575,14]
[358447473,1745159449321,-152.185776,0.00046575,14]
[358447474,1745159449330,-152.185776,0.00046575,14]
[358447475,1745159449340,-152.185776,0.00046575,14]
[358447476,1745159449350,-152.185776,0.00046575,14]
[358447477,1745159449359,-152.185776,0.00046575,14]
[358447478,1745159449369,-152.185776,0.00046575,14]
[358447479,1745159449377,-152.185776,0.00046575,14]
[358447480,1745159449385,-152.185776,0.00046575,14]
[358447481,1745159449394,-152.185776,0.00046575,14]
[358447482,1745159449403,-152.185776,0.00046575,14]
[358447483,1745159449412,-152.18577,0.00046575,14]
[358447484,1745159449421,-1130.46492482,0.000468,120]
[358447485,1745159449430,-1167.12847415,0.00047,14]
[358447486,1745159449439,-6535.82051388,0.00047,4]
[358447487,1745159449450,-500.0,0.00047097,120]
[358447488,1745159449461,-500.0,0.00047658,120]
[358447489,1745159449471,-150.0,0.0004772,3]
[358447490,1745159449480,-154.47,0.0004772,15]
[358447491,1745159449489,-500.0,0.0004772,30]
[358447492,1745159449499,-300.0,0.0004772,30]
[358447493,1745159449508,-432.76976354,0.0004772,30]
[358447494,1745159449519,-317.939843,0.00047721,14]
[358447495,1745159449529,-317.939834,0.00047721,14]
[358447496,1745159449539,-194.79027855,0.00047721,60]
[358447497,1745159449549,-150.0,0.00047721,2]
[358447498,1745159449559,-200.0,0.00047721,30]
[358447499,1745159449568,-200.0,0.00047721,30]
[358447500,1745159449578,-200.0,0.00047721,30]
[358447501,1745159449587,-200.0,0.00047721,30]
[358447502,1745159449597,-200.0,0.00047721,30]
[358447503,1745159449607,-200.0,0.00047721,30]
[358447504,1745159449616,-200.0,0.00047721,30]
[358447505,1745159449626,-200.0,0.00047721,30]
[358447506,1745159449635,-200.0,0.00047721,30]
[358447507,1745159449645,-200.0,0.00047721,30]
[358447508,1745159449654,-397.07,0.00047721,30]
[358447509,1745159449664,-156.09267822,0.00047721,120]
[358447510,1745159449673,-176.20204325,0.00047721,120]
[358447511,1745159449683,-175.94517304,0.00047721,30]
[358447512,1745159449693,-163.93333069,0.00047721,2]
[358447513,1745159449703,-1725.61146472,0.00047721,30]
[358447514,1745159449713,-150.28595053,0.00047721,30]
[358447515,1745159449722,-270.13464921,0.00047721,91]
[358447516,1745159449732,-271.032717,0.00047721,30]
[358447517,1745159449743,-301.71464609,0.00047721,120]
[358447518,1745159449752,-890.43624024,0.00047721,120]
[358447519,1745159449762,-453.53605266,0.00047721,30]
[358447520,1745159449771,-357.42118665,0.00047721,30]
[358447521,1745159449780,-244.29253659,0.00047721,10]
[358447522,1745159449789,-89475.89072805,0.00047721,30]
[358447523,1745159449832,-213.0,0.0004698,2]
[358447524,1745159449841,-111529.59427195,0.00047721,30]
[358447525,1745159449851,-253.43727486,0.00047721,90]
[358447526,1745159449860,-2019.53170922,0.00047721,2]
[358447527,1745159449869,-869.65097801,0.00047721,7]
[358447528,1745159449878,-165.28756003,0.00047721,120]
[358447529,1745159449888,-1035.30256841,0.00047721,7]
[358447530,1745159449898,-417.14064335,0.00047721,120]
[358447531,1745159449908,-1281.98531824,0.00047721,4]
[358447532,1745159449918,-464.27902711,0.00047721,7]
[358447533,1745159449927,-369.88244772,0.00047721,120]
[358447534,1745159449937,-419.2476672,0.00047721,120]
[358447535,1745159449948,-417.60282905,0.00047721,7]
[358447536,1745159449958,-169.15135109,0.00047721,120]
[358447537,1745159449967,-271.95990787,0.00047721,7]
[358447538,1745159449977,-919.06989572,0.00047721,3]
[358447539,1745159449986,-2051.75559547,0.00047721,3]